[Event "18th Prague Open-A 2019"]
[Site "Prague"]
[Date "2019.01.16"]
[Round "7"]
[White "Kulkarni Bhakti"]
[Black "Hesse, Henrik"]
[Result "1-0"]
[ECO "C45"]
[WhiteElo "2303"]
[BlackElo "2166"]
[Annotator "NA"]
[PlyCount "115"]
[EventDate "2019.01.11"]
[EventType "swiss"]
[EventCountry "CZE"]
[SourceTitle "playchess.com"]
[Source "ChessBase"]
[SourceQuality "1"]
[TimeControl "40/5400+30:1800+30"]

1. e4 {[%emt 0:00:15]} e5 {[%emt 0:03:36]} 2. d4 {[%emt 0:00:09]} exd4 {[%emt 0:01:28]} 3. Nf3 {[%emt 0:00:09]} Nc6 {[%emt 0:05:13]} 4. Nxd4 {[%emt 0:00:12]} Nf6 {[%emt 0:03:11]} 5. Nxc6 {[%emt 0:01:49]} bxc6 {[%emt 0:02:55]} 6. e5 {[%emt 0:00:07]} Qe7 {[%emt 0:02:18]} 7. Qe2 {[%emt 0:00:07]} Nd5 {[%emt 0:00:15]} 8. c4 {[%emt 0:00:10]} Nb6 {[%emt 0:00:19]} 9. g3 {[%emt 0:01:37]} Ba6 {[%emt 0:02:14]} 10. b3 {[%emt 0:00:35]} g6 {[%emt 0:02:54]} 11. Bg2 {[%emt 0:00:43]} Bg7 {[%emt 0:00:30]} 12. Bb2 {[%emt 0:01:15]} O-O {[%emt 0:03:12]} 13. O-O {[%emt 0:02:06]} f6 {[%emt 0:12:00]} 14. Ba3 {[%emt 0:05:05]} d6 {[%emt 0:22:31]} 15. Bxc6 {[%emt 0:01:31]} Rab8 {[%emt 0:00:40]} 16. Nc3 {[%emt 0:04:42]} fxe5 {[%emt 0:04:38]} 17. Qe3 {[%emt 0:02:08]} Kh8 {[%emt 0:06:47]} 18. Rfd1 {[%emt 0:06:56]} e4 {[%emt 0:05:25]} 19. Nxe4 {[%emt 0:06:30]} Bxc4 {[%emt 0:10:41]} 20. bxc4 {[%emt 0:03:39]} Nxc4 {[%emt 0:00:01]} 21. Qxa7 {[%emt 0:01:47]} Rb6 {[%emt 0:03:16]} 22. Bd5 {[%emt 0:01:41]} Nxa3 {[%emt 0:04:42]} 23. Qxa3 {[%emt 0:00:35]} Bxa1 {[%emt 0:00:23]} 24. Rxa1 {[%emt 0:00:05]} Qe5 {[%emt 0:01:02]} 25. Qc3 {[%emt 0:04:20]} Qxc3 {[%emt 0:00:43]} 26. Nxc3 {[%emt 0:00:02]} c6 {[%emt 0:00:23]} 27. Bb3 {[%emt 0:01:28]} Rf3 {[%emt 0:01:02]} 28. Ne2 {[%emt 0:00:43]} d5 {[%emt 0:00:33]} 29. Rd1 {[%emt 0:00:41]} Rf8 {[%emt 0:00:49]} 30. f4 {[%emt 0:00:48]} Re8 {[%emt 0:00:09]} 31. Kf2 {[%emt 0:00:05]} Re4 {[%emt 0:01:02]} 32. Rd3 {[%emt 0:00:57]} Kg7 {[%emt 0:00:30]} 33. Re3 {[%emt 0:00:50]} Rbb4 {[%emt 0:00:37]} 34. Rc3 {[%emt 0:01:38]} Rb6 35. Nc1 {[%emt 0:00:31]} Kf6 {[%emt 0:00:38]} 36. Nd3 {[%emt 0:00:07]} Re7 {[%emt 0:00:21]} 37. Ne5 {[%emt 0:01:02]} g5 {[%emt 0:00:49]} 38. Nxc6 {[%emt 0:00:18]} Rc7 39. Nb4 {[%emt 0:01:11]} Rxc3 {[%emt 0:01:02]} 40. Nxd5+ {[%emt 0:00:03]} Kf5 {[%emt 0:00:03]} 41. Nxc3 {[%emt 0:30:18]} gxf4 {[%emt 0:01:51]} 42. gxf4 {[%emt 0:00:00]} Rc6 {[%emt 0:06:18]} 43. Nd5 {[%emt 0:00:00]} Rh6 {[%emt 0:00:29]} 44. Kg3 {[%emt 0:00:00]} Ke4 {[%emt 0:00:27]} 45. Ne7 {[%emt 0:00:00]} Ra6 {[%emt 0:03:22]} 46. f5 {[%emt 0:00:00]} Ke5 {[%emt 0:00:35]} 47. Kg4 {[%emt 0:00:00]} Rd6 {[%emt 0:01:31]} 48. Nd5 {[%emt 0:00:00]} Rd8 {[%emt 0:01:49]} 49. f6 {[%emt 0:00:00]} Rg8+ {[%emt 0:00:24]} 50. Kh5 {[%emt 0:00:00]} Rg2 {[%emt 0:01:51]} 51. h4 {[%emt 0:00:00]} Rf2 {[%emt 0:00:46]} 52. Ne3 {[%emt 0:00:00]} Ke4 {[%emt 0:02:46]} 53. Ng4 {[%emt 0:00:00]} Rf5+ {[%emt 0:00:30]} 54. Kh6 {[%emt 0:00:00]} Kf4 {[%emt 0:00:16]} 55. f7 {[%emt 0:00:00]} Rxf7 {[%emt 0:02:21]} 56. Bxf7 {[%emt 0:00:00]} Kxg4 {[%emt 0:00:03]} 57. a4 {[%emt 0:00:00]} Kxh4 {[%emt 0:00:06]} 58. a5 {[%emt 0:00:00]} 1-0

[Event "18th Prague Open-A 2019"]
[Site "Prague"]
[Date "2019.01.16"]
[Round "7"]
[White "Ajay Krishna, S."]
[Black "Gschnitzer, Adrian"]
[Result "1/2-1/2"]
[ECO "A35"]
[WhiteElo "2289"]
[BlackElo "2368"]
[Annotator "NA"]
[PlyCount "82"]
[EventDate "2019.01.11"]
[EventType "swiss"]
[EventCountry "CZE"]
[SourceTitle "playchess.com"]
[Source "ChessBase"]
[SourceQuality "1"]
[TimeControl "40/5400+30:1800+30"]

1. Nf3 {[%emt 0:00:20]} Nf6 {[%emt 0:00:00]} 2. c4 {[%emt 0:00:12]} c5 {[%emt 0:00:01]} 3. Nc3 {[%emt 0:00:16]} Nc6 {[%emt 0:00:09]} 4. g3 {[%emt 0:00:14]} d5 {[%emt 0:00:31]} 5. cxd5 {[%emt 0:00:20]} Nxd5 {[%emt 0:00:09]} 6. Bg2 {[%emt 0:00:12]} g6 {[%emt 0:00:24]} 7. O-O {[%emt 0:01:11]} Bg7 {[%emt 0:00:06]} 8. Qa4 {[%emt 0:01:23]} O-O {[%emt 0:04:44]} 9. Qc4 {[%emt 0:00:46]} Nxc3 {[%emt 0:04:22]} 10. dxc3 {[%emt 0:00:15]} Qb6 {[%emt 0:02:16]} 11. Ng5 {[%emt 0:00:13]} Ne5 {[%emt 0:05:11]} 12. Qb3 {[%emt 0:00:44]} h6 {[%emt 0:02:33]} 13. Nf3 {[%emt 0:00:10]} Be6 {[%emt 0:17:19]} 14. Qxb6 {[%emt 0:01:33]} Nxf3+ {[%emt 0:00:09]} 15. Bxf3 {[%emt 0:00:03]} axb6 {[%emt 0:00:13]} 16. a3 {[%emt 0:06:35]} Bc4 {[%emt 0:02:41]} 17. Be3 {[%emt 0:12:29]} Rad8 {[%emt 0:06:53]} 18. Rfd1 {[%emt 0:04:13]} e6 {[%emt 0:10:06]} 19. Kf1 {[%emt 0:13:02]} Bd5 {[%emt 0:02:48]} 20. a4 {[%emt 0:03:51]} Bxf3 {[%emt 0:05:57]} 21. exf3 {[%emt 0:00:03]} Rxd1+ {[%emt 0:03:22]} 22. Rxd1 {[%emt 0:00:03]} Ra8 {[%emt 0:00:15]} 23. Rd6 {[%emt 0:01:50]} Ra6 {[%emt 0:02:05]} 24. Rd8+ {[%emt 0:00:29]} Kh7 {[%emt 0:00:27]} 25. Rd7 {[%emt 0:00:21]} Rxa4 {[%emt 0:01:04]} 26. Rxb7 {[%emt 0:00:59]} Ra1+ {[%emt 0:00:38]} 27. Ke2 {[%emt 0:02:57]} Rb1 {[%emt 0:06:25]} 28. Kd3 {[%emt 0:00:26]} Rxb2 {[%emt 0:01:24]} 29. Bxc5 {[%emt 0:00:18]} Rb3 {[%emt 0:03:48]} 30. Bb4 {[%emt 0:00:36]} Rb2 {[%emt 0:00:26]} 31. Rxf7 {[%emt 0:10:12]} Kg8 {[%emt 0:00:05]} 32. Re7 {[%emt 0:00:25]} Rxf2 {[%emt 0:00:35]} 33. Rxe6 {[%emt 0:05:57]} Rxf3+ {[%emt 0:00:47]} 34. Ke4 {[%emt 0:02:05]} Rf2 {[%emt 0:00:46]} 35. h4 {[%emt 0:04:31]} Re2+ {[%emt 0:06:32]} 36. Kd5 {[%emt 0:00:01]} Rxe6 {[%emt 0:00:23]} 37. Kxe6 {[%emt 0:00:01]} b5 {[%emt 0:00:11]} 38. g4 {[%emt 0:01:15]} h5 {[%emt 0:00:20]} 39. g5 {[%emt 0:10:28]} Bh8 {[%emt 0:00:21]} 40. Ba5 {[%emt 0:00:23]} Kf8 {[%emt 0:01:44]} 41. Bb4+ {[%emt 0:33:58]} Ke8 {[%emt 0:30:53]} 1/2-1/2

[Event "18th Prague Open-A 2019"]
[Site "Prague"]
[Date "2019.01.16"]
[Round "7"]
[White "Michalczak, Thomas"]
[Black "Zhang, Xiaopeng"]
[Result "0-1"]
[ECO "B90"]
[WhiteElo "2139"]
[BlackElo "2299"]
[Annotator "NA"]
[PlyCount "64"]
[EventDate "2019.01.11"]
[EventType "swiss"]
[EventCountry "CZE"]
[SourceTitle "playchess.com"]
[Source "ChessBase"]
[SourceQuality "1"]
[TimeControl "40/5400+30:1800+30"]

1. e4 {[%emt 0:00:00]} c5 {[%emt 0:00:00]} 2. Nf3 {[%emt 0:00:05]} d6 {[%emt 0:00:00]} 3. d4 {[%emt 0:00:06]} cxd4 {[%emt 0:00:00]} 4. Nxd4 {[%emt 0:00:05]} Nf6 {[%emt 0:00:00]} 5. Nc3 {[%emt 0:00:06]} a6 {[%emt 0:00:00]} 6. f3 {[%emt 0:00:07]} e5 {[%emt 0:00:04]} 7. Nb3 {[%emt 0:00:05]} Be6 {[%emt 0:00:04]} 8. Be3 {[%emt 0:00:06]} Be7 {[%emt 0:00:05]} 9. Qd2 {[%emt 0:00:09]} O-O {[%emt 0:00:07]} 10. O-O-O {[%emt 0:00:06]} Nbd7 {[%emt 0:00:02]} 11. g4 {[%emt 0:00:08]} b5 {[%emt 0:00:04]} 12. g5 {[%emt 0:02:35]} Nh5 {[%emt 0:01:52]} 13. Nd5 {[%emt 0:01:22]} Bxd5 {[%emt 0:00:14]} 14. exd5 {[%emt 0:00:06]} f5 {[%emt 0:01:27]} 15. gxf6 {[%emt 0:01:26]} Bxf6 {[%emt 0:00:08]} 16. Bh3 {[%emt 0:03:00]} Nb6 {[%emt 0:05:35]} 17. Na5 {[%emt 0:00:09]} Nf4 {[%emt 0:01:03]} 18. Be6+ {[%emt 0:06:22]} Kh8 {[%emt 0:02:30]} 19. Qb4 Qc7 {[%emt 0:08:43]} 20. Kb1 {[%emt 0:24:29]} Bd8 {[%emt 0:09:59]} 21. Bxb6 {[%emt 0:19:12]} Qxb6 {[%emt 0:00:08]} 22. Nc6 {[%emt 0:00:12]} Bc7 {[%emt 0:08:03]} 23. Qe4 {[%emt 0:01:45]} Qf2 {[%emt 0:01:01]} 24. Rhe1 {[%emt 0:11:49]} Bb6 {[%emt 0:01:42]} 25. h4 {[%emt 0:02:03]} Qg3 {[%emt 0:07:49]} 26. h5 {[%emt 0:02:57]} Ng2 {[%emt 0:01:31]} 27. Rh1 {[%emt 0:01:23]} Rf4 {[%emt 0:05:38]} 28. Rh3 {[%emt 0:00:33]} Qg5 {[%emt 0:00:04]} 29. Qd3 {[%emt 0:00:59]} Raf8 {[%emt 0:00:42]} 30. Qa3 {[%emt 0:02:05]} Ne3 {[%emt 0:02:20]} 31. Qxd6 {[%emt 0:08:41]} Nxd1 {[%emt 0:02:33]} 32. Nxe5 {[%emt 0:05:55]} Nf2 {[%emt 0:01:32]} 0-1

[Event "18th Prague Open-A 2019"]
[Site "Prague"]
[Date "2019.01.17"]
[Round "8"]
[White "Pechac, Jergus"]
[Black "Vojta, Tomas"]
[Result "1/2-1/2"]
[ECO "D07"]
[WhiteElo "2472"]
[BlackElo "2351"]
[Annotator "ChessBase"]
[PlyCount "140"]
[EventDate "2019.01.11"]
[EventType "swiss"]
[EventCountry "CZE"]
[SourceTitle "playchess.com"]
[Source "ChessBase"]
[SourceQuality "1"]
[TimeControl "40/5400+30:1800+30"]

1. d4 {[%emt 0:00:00]} d5 {[%emt 0:00:00]} 2. c4 {[%emt 0:00:00]} Nc6 {[%emt 0:00:00]} 3. Nc3 {[%emt 0:00:00]} Nf6 {[%emt 0:00:49]} 4. e3 {[%emt 0:01:25]} dxc4 {[%emt 0:04:42]} 5. Bxc4 {[%emt 0:00:06]} e5 {[%emt 0:01:10]} 6. d5 {[%emt 0:00:11]} Na5 {[%emt 0:10:56]} 7. Be2 {[%emt 0:10:50]} c6 {[%emt 0:03:03]} 8. e4 {[%emt 0:17:51]} Bb4 {[%emt 0:12:02]} 9. Qa4 {[%emt 0:00:52]} Bxc3+ {[%emt 0:02:41]} 10. bxc3 {[%emt 0:00:05]} Bd7 {[%emt 0:02:48]} 11. Bg5 {[%emt 0:08:27]} cxd5 {[%emt 0:06:23]} 12. Bb5 {[%emt 0:00:05]} Qc7 {[%emt 0:01:56]} 13. Bxd7+ {[%emt 0:07:06]} Nxd7 {[%emt 0:00:35]} 14. Ne2 {[%emt 0:02:26]} h6 {[%emt 0:06:27]} 15. Bh4 {[%emt 0:02:01]} dxe4 {[%emt 0:01:50]} 16. O-O-O {[%emt 0:00:20]} Nc6 {[%emt 0:03:57]} 17. Qxe4 {[%emt 0:01:39]} O-O {[%emt 0:00:43]} 18. Qg4 {[%emt 0:01:18]} f5 {[%emt 0:02:18]} 19. Qg6 {[%emt 0:01:13]} Nd4 {[%emt 0:07:04]} 20. Nxd4 {[%emt 0:00:57]} exd4 {[%emt 0:00:33]} 21. Qg3 {[%emt 0:02:45]} Qxg3 {[%emt 0:04:35]} 22. hxg3 {[%emt 0:02:16]} g5 {[%emt 0:01:20]} 23. Rxd4 {[%emt 0:00:39]} Nf6 {[%emt 0:00:45]} 24. g4 {[%emt 0:00:27]} gxh4 {[%emt 0:02:22]} 25. gxf5 {[%emt 0:00:07]} Rac8 {[%emt 0:02:15]} 26. Rdxh4 {[%emt 0:00:50]} Rxc3+ {[%emt 0:01:20]} 27. Kb2 {[%emt 0:00:06]} Rc5 {[%emt 0:01:21]} 28. g4 {[%emt 0:00:04]} Rb5+ {[%emt 0:03:42]} 29. Ka1 {[%emt 0:02:12]} Kf7 {[%emt 0:01:06]} 30. f3 {[%emt 0:00:10]} Ng8 {[%emt 0:00:47]} 31. R4h2 {[%emt 0:01:57]} Re8 {[%emt 0:01:01]} 32. Rd2 {[%emt 0:00:55]} Rbe5 {[%emt 0:00:42]} 33. Rhh2 {[%emt 0:00:39]} R8e7 {[%emt 0:03:21]} 34. Kb2 {[%emt 0:00:54]} Rc7 {[%emt 0:02:44]} 35. Rh1 {[%emt 0:00:26]} Rb5+ {[%emt 0:00:20]} 36. Ka1 {[%emt 0:00:04]} Nf6 {[%emt 0:01:36]} 37. a4 {[%emt 0:00:29]} Rb4 {[%emt 0:04:04]} 38. Rxh6 {[%emt 0:00:05]} Rxa4+ {[%emt 0:00:12]} 39. Kb2 {[%emt 0:00:04]} Rb4+ {[%emt 0:00:29]} 40. Ka3 {[%emt 0:00:20]} Rf4 {[%emt 0:04:16]} 41. g5 {[%emt 0:30:08]} Rxf3+ {[%emt 0:02:41]} 42. Kb2 {[%emt 0:00:00]} Rxf5 {[%emt 0:04:35]} 43. gxf6 {[%emt 0:00:00]} Rb5+ {[%emt 0:01:37]} 44. Ka3 {[%emt 0:00:00]} Rc1 {[%emt 0:06:21]} 45. Ka4 {[%emt 0:00:00]} a6 {[%emt 0:01:37]} 46. Rd7+ {[%emt 0:00:00]} Ke6 {[%emt 0:00:11]} 47. Re7+ {[%emt 0:00:00]} Kd6 {[%emt 0:00:23]} 48. Rh3 {[%emt 0:00:00]} Ra1+ {[%emt 0:01:46]} 49. Ra3 {[%emt 0:00:00]} Rxa3+ {[%emt 0:01:30]} 50. Kxa3 {[%emt 0:00:00]} Kc6 {[%emt 0:00:59]} 51. Re6+ {[%emt 0:00:00]} Kc7 {[%emt 0:00:08]} 52. Re7+ {[%emt 0:00:00]} Kb6 {[%emt 0:00:08]} 53. Re6+ {[%emt 0:00:00]} Ka7 {[%emt 0:02:27]} 54. Ka4 {[%emt 0:00:00]} Rf5 {[%emt 0:01:18]} 55. Kb4 {[%emt 0:00:00]} a5+ {[%emt 0:00:48]} 56. Kc4 {[%emt 0:00:17]} b6 {[%emt 0:00:45]} 57. Re7+ {[%emt 0:03:33]} Ka6 {[%emt 0:01:11]} 58. f7 {[%emt 0:00:07]} b5+ {[%emt 0:00:38]} 59. Kd3 {[%emt 0:01:13]} a4 {[%emt 0:00:48]} 60. Kc3 {[%emt 0:00:15]} Rf4 {[%emt 0:00:28]} 61. Re4 {[%emt 0:00:08]} Rxf7 {[%emt 0:01:44]} 62. Kb4 {[%emt 0:00:03]} Rf6 {[%emt 0:00:27]} 63. Rh4 {[%emt 0:00:12]} Kb6 {[%emt 0:00:58]} 64. Rg4 {[%emt 0:00:05]} Kc6 {[%emt 0:00:50]} 65. Rh4 {[%emt 0:00:03]} Re6 {[%emt 0:00:08]} 66. Rg4 {[%emt 0:00:08]} Re5 {[%emt 0:03:06]} 67. Rh4 {[%emt 0:00:36]} Kd6 {[%emt 0:00:25]} 68. Rh6+ {[%emt 0:00:35]} Re6 {[%emt 0:00:45]} 69. Rh5 {[%emt 0:00:06]} Kc6 {[%emt 0:00:54]} 70. Rc5+ {[%emt 0:00:04]} Kb6 1/2-1/2

[Event "18th Prague Open-A 2019"]
[Site "Prague"]
[Date "2019.01.17"]
[Round "8"]
[White "Wang, Yiye"]
[Black "Mishuchkov, Nikolai M."]
[Result "1-0"]
[ECO "A06"]
[WhiteElo "2443"]
[BlackElo "2308"]
[Annotator "NA RC"]
[PlyCount "115"]
[EventDate "2019.01.11"]
[EventType "swiss"]
[EventCountry "CZE"]
[SourceTitle "playchess.com"]
[Source "ChessBase"]
[SourceQuality "1"]
[TimeControl "40/5400+30:1800+30"]

1. Nf3 {[%emt 0:17:45]} d5 {[%emt 0:00:00]} 2. g3 {[%emt 0:00:23]} Bg4 {[%emt 0:00:00]} 3. Bg2 {[%emt 0:00:13]} Nd7 {[%emt 0:00:15]} 4. O-O {[%emt 0:00:34]} c6 {[%emt 0:00:49]} 5. d3 {[%emt 0:00:31]} e5 {[%emt 0:00:58]} 6. Qe1 {[%emt 0:00:35]} Ngf6 {[%emt 0:00:36]} 7. h3 {[%emt 0:00:55]} Bxf3 {[%emt 0:01:53]} 8. Bxf3 {[%emt 0:05:54]} Be7 {[%emt 0:04:35]} 9. e4 {[%emt 0:03:50]} dxe4 {[%emt 0:00:18]} 10. dxe4 {[%emt 0:00:07]} O-O {[%emt 0:00:09]} 11. Nd2 {[%emt 0:08:07]} Qc7 {[%emt 0:03:04]} 12. a4 {[%emt 0:00:56]} a5 {[%emt 0:07:48]} 13. Nc4 {[%emt 0:03:40]} Bb4 {[%emt 0:00:23]} 14. Qe2 {[%emt 0:05:41]} Rfd8 {[%emt 0:05:10]} 15. Ne3 {[%emt 0:12:12]} Nf8 {[%emt 0:01:43]} 16. c3 {[%emt 0:04:41]} Bc5 {[%emt 0:00:35]} 17. Nf5 {[%emt 0:00:08]} Ne6 {[%emt 0:00:22]} 18. h4 {[%emt 0:00:11]} Ne8 {[%emt 0:15:27]} 19. Kg2 {[%emt 0:04:24]} Bf8 {[%emt 0:01:35]} 20. Be3 {[%emt 0:11:56]} Bc5 {[%emt 0:00:50]} 21. Bd2 {[%emt 0:05:19]} Bf8 {[%emt 0:04:24]} 22. Be3 {[%emt 0:02:05]} Bc5 {[%emt 0:00:09]} 23. Bc1 {[%emt 0:00:04]} Bf8 {[%emt 0:00:30]} 24. Ne3 {[%emt 0:00:06]} Nc5 {[%emt 0:03:16]} 25. Nc4 {[%emt 0:00:25]} Nb3 {[%emt 0:02:02]} 26. Be3 {[%emt 0:00:04]} Nxa1 {[%emt 0:00:05]} 27. Bb6 {[%emt 0:00:03]} Qe7 {[%emt 0:01:20]} 28. Rxa1 {[%emt 0:01:59]} Nc7 {[%emt 0:00:36]} 29. Nxa5 {[%emt 0:03:52]} Ra6 {[%emt 0:00:25]} 30. Qe3 {[%emt 0:01:20]} Rda8 {[%emt 0:00:30]} 31. b4 {[%emt 0:00:36]} Ne6 {[%emt 0:00:39]} 32. Be2 {[%emt 0:01:14]} c5 {[%emt 0:01:03]} 33. Bxa6 {[%emt 0:00:12]} Rxa6 {[%emt 0:00:23]} 34. bxc5 {[%emt 0:01:08]} Nxc5 {[%emt 0:04:19]} 35. Bxc5 {[%emt 0:01:30]} Qxc5 {[%emt 0:00:05]} 36. Qxc5 {[%emt 0:00:04]} Bxc5 {[%emt 0:00:06]} 37. Nxb7 {[%emt 0:00:04]} Be7 {[%emt 0:00:15]} 38. a5 {[%emt 0:00:04]} Kf8 {[%emt 0:00:06]} 39. Ra4 {[%emt 0:01:09]} Ra7 {[%emt 0:01:10]} 40. a6 {[%emt 0:00:32]} Ke8 {[%emt 0:00:06]} 41. Ra5 {[%emt 0:33:48]} f6 {[%emt 0:34:46]} 42. c4 {[%emt 0:00:24]} Kd7 {[%emt 0:00:15]} 43. c5 {[%emt 0:00:06]} h5 {[%emt 0:00:49]} 44. Kf3 {[%emt 0:00:23]} g6 {[%emt 0:00:11]} 45. Ke3 {[%emt 0:00:24]} Kc6 {[%emt 0:02:21]} 46. Kd3 {[%emt 0:00:13]} g5 {[%emt 0:00:25]} 47. Kc4 {[%emt 0:00:50]} gxh4 {[%emt 0:00:06]} 48. gxh4 {[%emt 0:00:04]} f5 {[%emt 0:00:32]} 49. exf5 {[%emt 0:00:00]} Bxh4 {[%emt 0:00:00]} 50. Ra2 {[%emt 0:00:00]} Be7 {[%emt 0:00:00]} 51. Na5+ {[%emt 0:00:00]} Kc7 {[%emt 0:00:00]} 52. Kb5 {[%emt 0:00:00]} Ra8 {[%emt 0:00:00]} 53. Nc6 {[%emt 0:00:00]} Bg5 {[%emt 0:00:00]} 54. f3 {[%emt 0:00:00]} Rg8 {[%emt 0:00:00]} 55. Nxe5 {[%emt 0:00:00]} h4 {[%emt 0:00:00]} 56. a7 {[%emt 0:00:00]} Kb7 {[%emt 0:00:00]} 57. a8=Q+ {[%emt 0:00:00]} Rxa8 {[%emt 0:00:00]} 58. c6+ {[%emt 0:00:00]} 1-0

[Event "18th Prague Open-A 2019"]
[Site "Prague"]
[Date "2019.01.17"]
[Round "8"]
[White "Xiang, Zeyu"]
[Black "Gschnitzer, Adrian"]
[Result "1-0"]
[ECO "A58"]
[WhiteElo "2440"]
[BlackElo "2368"]
[Annotator "NA"]
[PlyCount "109"]
[EventDate "2019.01.11"]
[EventType "swiss"]
[EventCountry "CZE"]
[SourceTitle "playchess.com"]
[Source "ChessBase"]
[SourceQuality "1"]
[TimeControl "40/5400+30:1800+30"]

1. d4 {[%emt 0:00:00]} Nf6 {[%emt 0:00:00]} 2. c4 {[%emt 0:00:00]} c5 {[%emt 0:00:00]} 3. d5 {[%emt 0:00:00]} b5 {[%emt 0:00:00]} 4. cxb5 a6 5. bxa6 {[%emt 0:00:00]} g6 {[%emt 0:00:17]} 6. Nc3 {[%emt 0:00:06]} Bg7 {[%emt 0:00:08]} 7. e4 {[%emt 0:00:05]} O-O {[%emt 0:00:11]} 8. Be2 {[%emt 0:00:05]} Qa5 {[%emt 0:00:15]} 9. Bd2 {[%emt 0:00:07]} Bxa6 {[%emt 0:00:15]} 10. e5 {[%emt 0:00:06]} Ne8 {[%emt 0:00:12]} 11. Nf3 {[%emt 0:00:07]} d6 {[%emt 0:00:21]} 12. e6 {[%emt 0:00:11]} Bxe2 {[%emt 0:00:12]} 13. Qxe2 {[%emt 0:04:51]} Qa6 {[%emt 0:00:08]} 14. exf7+ {[%emt 0:02:28]} Rxf7 {[%emt 0:00:12]} 15. Ng5 {[%emt 0:11:10]} Qxe2+ {[%emt 0:00:11]} 16. Kxe2 {[%emt 0:00:03]} Rf5 {[%emt 0:00:12]} 17. Nge4 {[%emt 0:13:39]} Nc7 {[%emt 0:01:55]} 18. g4 {[%emt 0:01:34]} Rf8 {[%emt 0:04:01]} 19. a3 {[%emt 0:03:21]} Nd7 {[%emt 0:00:54]} 20. b4 {[%emt 0:23:10]} e6 {[%emt 0:20:08]} 21. bxc5 {[%emt 0:05:13]} exd5 {[%emt 0:00:32]} 22. cxd6 {[%emt 0:01:59]} Nb5 {[%emt 0:18:10]} 23. Nxd5 {[%emt 0:06:18]} Bxa1 {[%emt 0:00:47]} 24. Rxa1 {[%emt 0:00:05]} Rxa3 {[%emt 0:00:38]} 25. Rxa3 {[%emt 0:08:42]} Nxa3 {[%emt 0:00:02]} 26. Ne7+ {[%emt 0:01:45]} Kf7 {[%emt 0:00:44]} 27. Ng5+ {[%emt 0:00:10]} Ke8 {[%emt 0:00:19]} 28. Nxh7 {[%emt 0:06:43]} Rh8 {[%emt 0:00:29]} 29. Ng5 {[%emt 0:04:52]} Rxh2 {[%emt 0:00:09]} 30. Bf4 {[%emt 0:00:16]} Rh4 {[%emt 0:01:12]} 31. f3 {[%emt 0:00:50]} Nc4 {[%emt 0:02:02]} 32. Nd5 {[%emt 0:05:53]} Rh1 {[%emt 0:01:34]} 33. Nc7+ {[%emt 0:00:56]} Kd8 {[%emt 0:04:17]} 34. Nf7+ {[%emt 0:01:02]} Kc8 {[%emt 0:00:16]} 35. Nd5 {[%emt 0:00:55]} Nc5 {[%emt 0:27:58]} 36. Ne7+ {[%emt 0:00:25]} Kd7 {[%emt 0:00:04]} 37. Nxg6 {[%emt 0:00:13]} Ke6 {[%emt 0:00:09]} 38. Ng5+ {[%emt 0:00:27]} Kf6 {[%emt 0:00:06]} 39. Ne7 {[%emt 0:00:26]} Ra1 {[%emt 0:03:44]} 40. Nd5+ {[%emt 0:00:34]} Kg6 {[%emt 0:00:17]} 41. Nc3 {[%emt 0:02:58]} Nb2 {[%emt 0:08:03]} 42. Nge4 {[%emt 0:04:01]} Ne6 {[%emt 0:01:17]} 43. Bg3 {[%emt 0:07:39]} Kf7 {[%emt 0:06:46]} 44. f4 {[%emt 0:01:20]} Ra5 {[%emt 0:01:08]} 45. f5 {[%emt 0:01:40]} Nd4+ {[%emt 0:02:27]} 46. Ke3 {[%emt 0:00:10]} Nxf5+ {[%emt 0:06:49]} 47. gxf5 {[%emt 0:00:05]} Rxf5 {[%emt 0:00:07]} 48. Kd4 {[%emt 0:00:26]} Rh5 {[%emt 0:01:22]} 49. Bf4 {[%emt 0:04:53]} Rh1 {[%emt 0:03:28]} 50. d7 {[%emt 0:06:59]} Ke7 {[%emt 0:00:36]} 51. Nc5 {[%emt 0:00:23]} Rh4 {[%emt 0:01:17]} 52. Nd5+ {[%emt 0:00:06]} Kd8 {[%emt 0:00:09]} 53. Ke3 {[%emt 0:00:31]} Nc4+ {[%emt 0:01:32]} 54. Ke2 {[%emt 0:01:22]} Rh5 {[%emt 0:02:08]} 55. Bc7# 1-0

[Event "18th Prague Open-A 2019"]
[Site "Prague"]
[Date "2019.01.17"]
[Round "8"]
[White "Plischki, Sebastian"]
[Black "Kulhanek, Tomas"]
[Result "1-0"]
[ECO "B09"]
[WhiteElo "2426"]
[BlackElo "2303"]
[Annotator "NA RC"]
[PlyCount "73"]
[EventDate "2019.01.11"]
[EventType "swiss"]
[EventCountry "CZE"]
[SourceTitle "playchess.com"]
[Source "ChessBase"]
[SourceQuality "1"]
[TimeControl "40/5400+30:1800+30"]

1. d4 {[%emt 0:00:00]} g6 {[%emt 0:00:00]} 2. e4 {[%emt 0:00:00]} Bg7 {[%emt 0:00:00]} 3. Nc3 {[%emt 0:00:00]} d6 {[%emt 0:00:33]} 4. f4 {[%emt 0:00:13]} Nf6 {[%emt 0:01:17]} 5. Nf3 {[%emt 0:00:14]} c5 {[%emt 0:00:46]} 6. Bb5+ {[%emt 0:00:36]} Nbd7 {[%emt 0:01:14]} 7. e5 {[%emt 0:01:34]} Ng8 {[%emt 0:06:35]} 8. dxc5 {[%emt 0:02:51]} dxc5 {[%emt 0:02:44]} 9. Be3 {[%emt 0:00:58]} Nh6 {[%emt 0:07:47]} 10. Bxc5 {[%emt 0:02:10]} O-O {[%emt 0:00:11]} 11. Bf2 {[%emt 0:01:04]} Ng4 {[%emt 0:01:04]} 12. O-O {[%emt 0:01:58]} Nxf2 {[%emt 0:02:54]} 13. Rxf2 {[%emt 0:00:06]} Nb6 {[%emt 0:01:29]} 14. a4 {[%emt 0:03:41]} Be6 {[%emt 0:02:08]} 15. Ng5 {[%emt 0:05:32]} Nd5 {[%emt 0:02:47]} 16. Nxe6 {[%emt 0:04:26]} fxe6 {[%emt 0:00:03]} 17. Qg4 {[%emt 0:06:24]} Nxc3 {[%emt 0:03:49]} 18. Qxe6+ {[%emt 0:00:35]} Kh8 {[%emt 0:00:05]} 19. bxc3 {[%emt 0:00:05]} Qc7 {[%emt 0:00:30]} 20. Raf1 {[%emt 0:04:54]} Rad8 {[%emt 0:02:01]} 21. Bd3 {[%emt 0:01:19]} Qd7 {[%emt 0:01:57]} 22. Qxd7 {[%emt 0:01:58]} Rxd7 {[%emt 0:00:02]} 23. h4 {[%emt 0:01:02]} Rc7 {[%emt 0:03:35]} 24. c4 {[%emt 0:01:26]} Rc6 {[%emt 0:05:05]} 25. Rb1 {[%emt 0:01:03]} b6 {[%emt 0:01:42]} 26. g4 {[%emt 0:01:23]} e6 {[%emt 0:01:47]} 27. Kg2 {[%emt 0:00:30]} Rf7 {[%emt 0:04:40]} 28. Kg3 {[%emt 0:00:44]} Rc5 {[%emt 0:03:16]} 29. Rb5 {[%emt 0:02:34]} Bf8 {[%emt 0:02:12]} 30. Rh2 {[%emt 0:01:35]} Rxb5 {[%emt 0:05:07]} 31. cxb5 {[%emt 0:00:17]} Bb4 {[%emt 0:00:35]} 32. Kf3 {[%emt 0:05:19]} Kg7 {[%emt 0:05:02]} 33. Bc4 {[%emt 0:01:22]} Re7 {[%emt 0:02:34]} 34. h5 {[%emt 0:00:49]} gxh5 {[%emt 0:03:50]} 35. Rxh5 {[%emt 0:00:14]} h6 {[%emt 0:00:14]} 36. Ke4 {[%emt 0:00:34]} Bc3 {[%emt 0:02:13]} 37. Rh3 {[%emt 0:00:17]} 1-0